fUSD/lending_fUSD_20250930
["ID","MTS","AMOUNT","RATE_DAILY","PERIOD"]
[388532138,1759236632522,-151.0,0.0001682,2]
[388532139,1759236632531,-500.0,0.0001682,2]
[388532140,1759236632541,-151.0,0.0001682,2]
[388532141,1759236632550,-151.0,0.0001682,2]
[388532142,1759236632559,-315.60292304,0.0001682,2]
[388532143,1759236632568,-151.0,0.0001682,2]
[388532144,1759236632577,-151.0,0.0001682,2]
[388532145,1759236632586,-151.0,0.0001682,2]
[388532146,1759236632595,-151.0,0.0001682,2]
[388532147,1759236632604,-151.0,0.0001682,2]
[388532148,1759236632613,-151.0,0.0001682,2]
[388532149,1759236632622,-151.0,0.0001682,2]
[388532150,1759236632632,-151.0,0.0001682,2]
[388532151,1759236632640,-151.0,0.0001682,2]
[388532152,1759236632650,-151.0,0.0001682,2]
[388532153,1759236632660,-151.0,0.0001682,2]
[388532154,1759236632669,-151.0,0.0001682,2]
[388532155,1759236632678,-151.0,0.0001682,2]
[388532156,1759236632687,-151.0,0.0001682,2]
[388532157,1759236632696,-151.0,0.0001682,2]
[388532158,1759236632705,-151.0,0.0001682,2]
[388532159,1759236632714,-151.0,0.0001682,2]
[388532160,1759236632724,-151.0,0.0001682,2]
[388532161,1759236632733,-151.0,0.0001682,2]
[388532162,1759236632742,-151.0,0.0001682,2]
[388532163,1759236632751,-151.0,0.0001682,2]
[388532164,1759236632760,-151.0,0.0001682,2]
[388532165,1759236632770,-151.0,0.0001682,2]
[388532166,1759236632779,-151.0,0.0001682,2]
[388532167,1759236632791,-151.0,0.0001682,2]
[388532168,1759236632802,-151.0,0.0001682,2]
[388532169,1759236632811,-151.0,0.0001682,2]
[388532170,1759236632820,-151.0,0.0001682,2]
[388532171,1759236632831,-151.0,0.0001682,2]
[388532172,1759236632840,-151.0,0.0001682,2]
[388532173,1759236632850,-151.0,0.0001682,2]
[388532174,1759236632859,-151.0,0.0001682,2]
[388532175,1759236632869,-151.0,0.0001682,2]
[388532176,1759236632878,-151.0,0.0001682,2]
[388532177,1759236632887,-151.0,0.0001682,2]
[388532178,1759236632897,-151.0,0.0001682,2]
[388532179,1759236632906,-151.0,0.0001682,2]
[388532180,1759236632916,-200.0,0.0001682,2]
[388532181,1759236632925,-200.0,0.0001682,2]
[388532182,1759236632934,-60872.00423708,0.0001683,2]
[388532183,1759236632944,-2606.55070746,0.0001683,2]
[388532184,1759236632953,-150.0,0.00016832,2]
[388532185,1759236632963,-2606.55070746,0.00016842,2]
[388532186,1759236632972,-2606.55070746,0.00016853,2]
[388532187,1759236632981,-2606.55070746,0.00016865,2]
[388532188,1759236632991,-2606.55070746,0.00016877,2]
[388532189,1759236633000,-1572.4377,0.00016877,2]
[388532190,1759236633009,-684.33771011,0.0001688,2]
[388532191,1759236633018,-2606.55070746,0.00016888,2]
[388532192,1759236633027,-1000.0,0.00016899,5]
[388532193,1759236633037,-1000.0,0.00016899,5]
[388532194,1759236633047,-1000.0,0.00016899,5]
[388532195,1759236633057,-1000.0,0.00016899,5]
[388532196,1759236633066,-1000.0,0.00016899,5]
[388532197,1759236633075,-286.49215008,0.00016899,5]
[388532198,1759236633084,-260.77503739,0.00016899,2]
[388532199,1759236633093,-298.95898566,0.00016899,2]
[388532200,1759236633102,-500.0,0.00016899,2]
[388532201,1759236633111,-373.87064104,0.00016899,2]
[388532202,1759236633119,-500.0,0.00016899,2]
[388532203,1759236633128,-500.0,0.00016899,2]
[388532204,1759236633137,-286.64660642,0.00016899,2]
[388532205,1759236633147,-6432.32102146,0.00016899,2]
[388532206,1759236633156,-2031.84,0.00016899,9]
[388532207,1759236633166,-6432.32102141,0.00016899,2]
[388532208,1759236633175,-6432.32102141,0.00016899,2]
[388532209,1759236633185,-6432.32102141,0.00016899,2]
[388532210,1759236633195,-2753.54239273,0.00016899,2]
[388532219,1759236637613,-575.30635287,0.00016899,2]
[388532223,1759236637727,-3103.47227581,0.00016899,2]
[388532224,1759236637737,-352.99207394,0.000169,2]
[388532225,1759236637748,-3071.36432793,0.000169,2]
[388532226,1759236637759,-663.64789363,0.000169,2]
[388532227,1759236637786,-2344.31672591,0.000169,2]
[388532228,1759236637796,-6432.32102141,0.000169,2]
[388532229,1759236637806,-6432.32102141,0.000169,2]
[388532230,1759236637816,-6432.32102141,0.000169,2]
[388532231,1759236637826,-161.50922693,0.000169,2]
[388532232,1759236637835,-1562.06079168,0.000169,2]
[388532233,1759236637844,-2606.55070746,0.000169,2]
[388532234,1759236637854,-6432.32102141,0.000169,2]
[388532235,1759236637863,-693.15110906,0.000169,2]
[388532236,1759236637872,-160.05896858,0.000169,2]
[388532237,1759236637881,-5135.81736613,0.000169,2]
[388532238,1759236637891,-150.0,0.00016909,2]
[388532239,1759236637900,-1649.87,0.00016968,2]
[388532240,1759236637909,-500.0,0.00016973,2]
[388532241,1759236637918,-500.0,0.00016973,2]
[388532242,1759236637927,-500.0,0.00016973,2]
[388532243,1759236637937,-500.0,0.00016973,2]
[388532244,1759236637946,-345.36130223,0.00016973,2]
[388532245,1759236637956,-170.48320873,0.00016973,2]
[388532248,1759236638218,-500.0,0.00016973,2]
[388532249,1759236638300,-500.0,0.00016973,2]
[388532250,1759236638311,-500.0,0.00016973,2]
[388532251,1759236638320,-500.11715996,0.00016973,2]
[388532252,1759236638329,-500.0,0.00016973,2]
[388532253,1759236638338,-501.25955265,0.00016973,2]
[388532254,1759236638347,-500.0,0.00016973,2]
[388532255,1759236638357,-500.36692388,0.00016973,2]
[388532256,1759236638366,-500.0,0.00016973,2]
[388532257,1759236638375,-500.0,0.00016973,2]
[388532258,1759236638385,-500.0,0.00016973,2]
[388532259,1759236638394,-500.0,0.00016973,2]
[388532260,1759236638404,-500.0,0.00016973,2]
[388532261,1759236638413,-500.0,0.00016973,2]
[388532262,1759236638422,-500.0,0.00016973,2]
[388532263,1759236638431,-500.0,0.00016973,2]
[388532264,1759236638440,-837.7168802,0.00016981,2]
[388532265,1759236638449,-8281.7435331,0.00016981,2]
[388532266,1759236638458,-525.49723377,0.00016983,2]
[388532267,1759236638467,-1474.35467507,0.00016985,5]
[388532268,1759236638476,-124654.0,0.00016986,2]
[388532269,1759236638486,-151.47861609,0.00016986,2]
[388532270,1759236638495,-297.67478374,0.00016986,2]
[388532271,1759236638504,-166.61081421,0.00016986,2]
[388532272,1759236638513,-298.14596182,0.00016986,2]
[388532273,1759236638523,-266.62156688,0.00016986,2]
[388532274,1759236638532,-161.64748627,0.00016986,2]
[388532275,1759236638541,-159.34593224,0.00016986,2]
[388532276,1759236638551,-266.05172454,0.00016986,2]
[388532277,1759236638560,-160.40144783,0.00016986,2]
[388532278,1759236638570,-166.6804143,0.00016986,2]
[388532279,1759236638579,-289.68908603,0.00016986,2]
[388532280,1759236638589,-150.0,0.00016986,2]
[388532281,1759236638598,-213.14736952,0.00016986,2]
[388532282,1759236638608,-201.72066229,0.00016986,2]
[388532283,1759236638619,-228.72259368,0.00016986,2]
[388532284,1759236638628,-26332.0,0.00016986,2]
[388532285,1759236638637,-2015.0,0.00016986,2]
[388532286,1759236638647,-259.98627933,0.0001699,2]
[388532287,1759236638656,-151.0,0.00016997,2]
[388532288,1759236638665,-155.876,0.00016999,2]
[388532289,1759236638674,-300.0,0.00016999,2]
[388532290,1759236638683,-300.0,0.00016999,2]
[388532291,1759236638693,-300.0,0.00016999,2]
[388532292,1759236638704,-10020.51077917,0.00016999,2]
[388532293,1759236638714,-306.42167078,0.00016999,2]
[388532294,1759236638723,-300.0,0.00016999,2]
[388532295,1759236638733,-666.0,0.00016999,2]
[388532296,1759236638743,-272640.61575716,0.00017,2]
[388532297,1759236638753,-91076.81910168,0.00017,2]
[388532298,1759236638763,-5140736.58011679,0.00017,2]
[388532299,1759236638772,-127025.9919554,0.00017,2]
[388532300,1759236638782,-1501.6666363,0.00017,2]
[388532301,1759236638796,-500.0,0.00017,2]
[388532302,1759236638805,-19897.9359792,0.00017,2]
[388532303,1759236638815,-200.0,0.00017,2]
[388532304,1759236638825,-300.38,0.00017,2]
[388532305,1759236638835,-806.58,0.00017,2]
[388532306,1759236638845,-302.74,0.00017,2]
[388532307,1759236638854,-473.55,0.00017,2]
[388532308,1759236638865,-847.5411886,0.00017,2]
[388532309,1759236638875,-473.55,0.00017,2]
[388532310,1759236638885,-473.55,0.00017,2]
[388532311,1759236638894,-397867.6401797,0.00017,2]
[388532312,1759236638904,-482.72,0.000172,2]
[388532313,1759236638914,-1649.87,0.00017242,2]
[388532314,1759236638923,-178.13,0.00017281,2]
[388532315,1759236638932,-202.21,0.00017323,2]
[388532316,1759236638941,-1562.06079163,0.00017354,2]
[388532317,1759236638951,-512.49699926,0.00017362,2]
[388532318,1759236638961,-512.49699926,0.00017364,2]
[388532319,1759236638971,-500.0,0.0001737,2]
[388532320,1759236638980,-1114.73659,0.0001738,2]
[388532321,1759236638990,-1140.40315,0.0001738,2]
[388532322,1759236638999,-512.49699926,0.00017388,2]
[388532323,1759236639009,-512.49699926,0.00017394,2]
[388532324,1759236639019,-746.84762699,0.00017396,2]
[388532325,1759236639028,-304.2,0.000174,2]
[388532326,1759236639038,-1114.73659,0.000174,2]
[388532327,1759236639048,-746.84762699,0.00017417,2]
[388532328,1759236639057,-746.84762699,0.00017424,2]
[388532329,1759236639067,-512.49699926,0.00017427,2]
[388532330,1759236639077,-746.84762699,0.00017436,2]
[388532331,1759236639087,-739.07,0.00017437,2]
[388532332,1759236639097,-747.96159393,0.00017445,2]
[388532333,1759236639107,-512.49699926,0.00017452,2]
[388532334,1759236639117,-1114.73659,0.0001746,2]
[388532335,1759236639126,-180.0,0.0001746,2]
[388532336,1759236639136,-746.84762699,0.00017462,2]
[388532337,1759236639146,-512.49699926,0.00017468,2]
[388532338,1759236639157,-746.84762699,0.00017474,2]
[388532339,1759236639167,-746.84762699,0.00017491,2]
[388532340,1759236639177,-283.84,0.00017501,2]
[388532341,1759236639187,-1649.87,0.00017516,2]
[388532342,1759236639197,-500.0,0.00017521,2]
[388532343,1759236639208,-521.67487993,0.00017521,2]
[388532344,1759236639218,-1011.48863841,0.00017521,2]
[388532345,1759236639228,-558.39658324,0.00017521,2]
[388532346,1759236639238,-500.0,0.00017521,2]
[388532347,1759236639249,-503.12032101,0.00017521,2]
[388532348,1759236639258,-1000.0,0.00017521,2]
[388532349,1759236639268,-1000.0,0.00017521,2]
[388532350,1759236639278,-1000.0,0.00017521,2]
[388532351,1759236639287,-500.0,0.00017521,2]
[388532352,1759236639297,-1000.0,0.00017521,2]
[388532353,1759236639306,-157.08739087,0.00017521,2]
[388532354,1759236639315,-360.11033021,0.00017521,2]
[388532355,1759236639325,-1114.73659,0.0001753,2]
[388532356,1759236639334,-1097.43,0.00017534,2]
[388532357,1759236639343,-175.4,0.00017534,2]
[388532358,1759236639352,-339.41,0.00017534,2]
[388532359,1759236639362,-545.07,0.00017534,2]
[388532360,1759236639371,-412.01,0.00017534,2]
[388532361,1759236639380,-167.75,0.00017534,2]
[388532362,1759236639390,-412.48,0.00017534,2]
[388532363,1759236639399,-545.07,0.00017534,2]
[388532364,1759236639409,-645.16,0.00017534,2]
[388532365,1759236639418,-539.16,0.00017534,2]
[388532366,1759236639428,-412.48,0.00017534,2]
[388532367,1759236639436,-167.75,0.00017534,2]
[388532368,1759236639446,-411.39,0.00017534,2]
[388532370,1759236639455,-150.0,0.00017534,2]
[388532371,1759236639464,-167.75,0.00017534,2]
[388532372,1759236639473,-48628.48459317,0.00017556,2]
[388532373,1759236639482,-150.0,0.0001758,2]
[388532374,1759236639492,-1114.7366,0.0001759,2]
[388532375,1759236639502,-1140.40316,0.0001763,2]
[388532377,1759236639512,-1114.73659,0.0001766,2]
[388532378,1759236639521,-747.96159393,0.00017717,2]
[388532379,1759236639530,-1649.87,0.0001779,2]
[388532380,1759236639539,-954.3,0.00017808,2]
[388532381,1759236639548,-1562.06079163,0.00017809,2]
[388532382,1759236639557,-1140.40315,0.0001788,2]
[388532383,1759236639567,-500.0,0.00017886,2]
[388532384,1759236639576,-160.0,0.00017887,2]
[388532385,1759236639585,-151.0,0.00017887,2]
[388532386,1759236639595,-500.0,0.00017887,2]
[388532387,1759236639605,-189.26587352,0.00017887,2]
[388532388,1759236639614,-601.3376128,0.00017887,2]
[388532389,1759236639623,-9000.0,0.00017887,2]
[388532390,1759236639632,-1000.0,0.00017887,2]
[388532391,1759236639642,-7965.41053268,0.00017887,2]
[388532392,1759236639651,-1000.0,0.00017887,2]
[388532393,1759236639660,-500.0,0.00017887,2]
[388532394,1759236639669,-1000.0,0.00017887,2]
[388532395,1759236639680,-1000.0,0.00017887,2]
[388532396,1759236639689,-500.0,0.00017887,2]
[388532397,1759236639700,-1000.0,0.00017887,2]
[388532398,1759236639709,-500.0,0.00017887,2]
[388532399,1759236639718,-1000.0,0.00017887,2]
[388532400,1759236639728,-500.0,0.00017887,2]
[388532401,1759236639737,-500.0,0.00017887,2]
[388532402,1759236639747,-500.0,0.00017887,2]
[388532403,1759236639756,-500.0,0.00017887,2]
[388532404,1759236639765,-1000.0,0.00017887,2]
[388532405,1759236639775,-151.0,0.00017887,2]
[388532406,1759236639786,-500.0,0.00017887,2]
[388532407,1759236639796,-500.0,0.00017887,2]
[388532408,1759236639806,-578.20924308,0.00017887,2]
[388532409,1759236639815,-500.0,0.00017887,2]
[388532410,1759236639824,-500.0,0.00017887,2]
[388532411,1759236639834,-500.0,0.00017887,2]
[388532412,1759236639843,-500.0,0.00017887,2]
[388532413,1759236639852,-500.0,0.00017887,2]
[388532414,1759236639861,-500.0,0.00017887,2]
[388532415,1759236639871,-1000.0,0.00017887,2]
[388532416,1759236639880,-500.0,0.00017887,2]
[388532417,1759236639889,-1000.0,0.00017887,2]
[388532418,1759236639901,-1000.0,0.00017887,2]
[388532419,1759236639910,-1000.0,0.00017887,2]
[388532420,1759236639919,-322.6107,0.00017887,2]
[388532421,1759236639928,-500.0,0.00017887,2]
[388532422,1759236639937,-401.7256472,0.00017887,2]
[388532423,1759236639946,-500.0,0.00017887,2]
[388532424,1759236639956,-500.0,0.00017887,2]
[388532425,1759236639965,-200.0,0.00017887,2]
[388532426,1759236639974,-200.0,0.00017887,2]
[388532427,1759236639984,-200.0,0.00017887,2]
[388532428,1759236639993,-500.0,0.00017887,2]
[388532429,1759236640003,-500.0,0.00017887,2]
[388532430,1759236640012,-200.0,0.00017887,2]
[388532432,1759236640021,-500.0,0.00017887,2]
[388532433,1759236640030,-200.0,0.00017887,2]
[388532434,1759236640039,-500.0,0.00017887,2]
[388532435,1759236640048,-200.0,0.00017887,2]
[388532436,1759236640057,-500.0,0.00017887,2]
[388532437,1759236640067,-200.0,0.00017887,2]
[388532438,1759236640076,-500.0,0.00017887,2]
[388532439,1759236640086,-500.0,0.00017887,2]
[388532440,1759236640095,-200.0,0.00017887,2]
[388532441,1759236640104,-582.68971079,0.00017887,2]
[388532442,1759236640113,-200.0,0.00017887,2]
[388532443,1759236640123,-200.0,0.00017887,2]
[388532444,1759236640133,-200.0,0.00017887,2]
[388532445,1759236640142,-200.0,0.00017887,2]
[388532446,1759236640152,-151.0,0.00017887,2]
[388532447,1759236640161,-200.0,0.00017887,2]
[388532448,1759236640169,-239.56851722,0.00017887,2]
[388532449,1759236640179,-231.28369723,0.00017887,2]
[388532450,1759236640188,-151.0,0.00017887,2]
[388532451,1759236640198,-168.0,0.00017888,2]
[388532452,1759236640207,-69182.34916976,0.0001789,2]
[388532453,1759236640216,-8260.13072239,0.00017942,2]
[388532454,1759236640226,-1300.0,0.00017943,2]
[388532455,1759236640235,-392.36,0.00017956,2]
[388532456,1759236640245,-747.96159393,0.0001799,2]
[388532457,1759236640254,-8565.75555911,0.00017997,2]
[388532458,1759236640263,-2000.0,0.00018,2]
[388532459,1759236640272,-2000.0,0.00018,2]
[388532460,1759236640281,-2000.0,0.00018,2]
[388532461,1759236640291,-2000.0,0.00018,2]
[388532462,1759236640300,-760.82,0.00018,2]
[388532463,1759236640309,-2681.11048899,0.00018,2]
[388532464,1759236640318,-168.0,0.00018042,2]
[388532465,1759236640328,-8882.6885148,0.00018052,2]
[388532466,1759236640337,-168.0,0.00018057,2]
[388532467,1759236640346,-1649.87,0.00018064,2]
[388532468,1759236640355,-1500.0,0.00018068,2]
[388532469,1759236640364,-1500.0,0.00018068,2]
[388532470,1759236640373,-1500.0,0.00018068,2]
[388532471,1759236640382,-1301.22856971,0.00018068,2]
[388532472,1759236640391,-1489.0,0.000181,2]
[388532473,1759236640400,-9211.34798985,0.00018107,2]
[388532474,1759236640410,-400.0,0.00018108,2]
[388532475,1759236640419,-693.15110905,0.00018126,2]
[388532476,1759236640427,-1140.40316,0.0001813,2]
[388532477,1759236640437,-463.07,0.00018134,2]
[388532478,1759236640446,-9552.16786547,0.00018162,2]
[388532479,1759236640455,-150.25,0.00018173,2]
[388532480,1759236640464,-150.0,0.00018178,2]
[388532481,1759236640474,-9905.5980765,0.00018217,2]
[388532482,1759236640483,-739.07,0.00018229,2]
[388532483,1759236640492,-420.0,0.00018238,2]
[388532484,1759236640502,-747.96159393,0.00018262,2]
[388532485,1759236640511,-1562.06079163,0.00018263,2]
[388532486,1759236640521,-10272.10520533,0.00018272,2]
[388532487,1759236640531,-195.0,0.00018311,2]
[388532488,1759236640541,-300.41487226,0.00018311,2]
[388532489,1759236640550,-310.68639139,0.00018311,2]
[388532490,1759236640559,-250.0,0.00018311,2]
[388532491,1759236640568,-150.0,0.00018311,2]
[388532492,1759236640578,-2000.0,0.00018311,2]
[388532493,1759236640587,-195.0,0.00018311,2]
[388532494,1759236640595,-500.0,0.00018311,2]
[388532495,1759236640605,-10652.17309792,0.00018327,2]
[388532496,1759236640616,-1680.0,0.00018329,2]
[388532497,1759236640626,-1649.87,0.00018338,2]
[388532498,1759236640635,-200.0,0.00018356,2]
[388532499,1759236640644,-250.0,0.00018363,2]
[388532500,1759236640653,-2500.0,0.00018363,2]
[388532501,1759236640662,-195.0,0.00018363,2]
[388532502,1759236640672,-500.0,0.00018363,2]
[388532503,1759236640682,-300.0,0.00018363,2]
[388532504,1759236640692,-300.0,0.00018363,2]
[388532505,1759236640701,-150.57187654,0.00018363,4]
[388532506,1759236640710,-300.0,0.00018363,2]
[388532507,1759236640719,-474.52590314,0.00018376,2]
[388532508,1759236640728,-1140.40315,0.0001838,2]
[388532509,1759236640737,-11046.30350255,0.00018382,2]
[388532510,1759236640747,-168.0,0.00018389,2]
[388532511,1759236640755,-168.0,0.00018402,2]
[388532512,1759236640764,-151.0,0.00018435,2]
[388532513,1759236640773,-9000.0,0.00018435,2]
[388532514,1759236640783,-151.0,0.00018435,2]
[388532515,1759236640796,-422.354326,0.00018436,2]
[388532516,1759236640805,-11455.01673214,0.00018437,2]
[388532517,1759236640815,-7865.04327664,0.00018492,2]
[388532518,1759236640825,-350.01,0.00018533,2]
[388532519,1759236640835,-3108.36,0.00018533,2]
[388532520,1759236640845,-2193.35,0.00018533,2]
[388532521,1759236640854,-747.96159393,0.00018535,2]
[388532522,1759236640864,-233.3715545,0.00018537,2]
[388532523,1759236640874,-5218.62717953,0.00018537,2]
[388532524,1759236640884,-5444.0,0.00018552,2]
[388532525,1759236640895,-168.0,0.00018605,2]
[388532526,1759236640904,-1649.87,0.00018612,2]
[388532527,1759236640913,-2000.0,0.00018616,2]
[388532528,1759236640923,-2000.0,0.00018616,2]
[388532529,1759236640934,-2000.0,0.00018616,2]
[388532530,1759236640944,-2640.0,0.00018626,2]
[388532531,1759236640953,-1140.40316,0.0001863,2]
[388532532,1759236640962,-805.89,0.0001863,2]
[388532533,1759236640971,-1000.0,0.0001863,2]
[388532534,1759236640980,-171.2013385,0.00018664,3]
[388532535,1759236640990,-168.0,0.00018694,2]
[388532536,1759236640999,-155.0,0.00018699,2]
[388532537,1759236641009,-1562.06079163,0.00018717,2]
[388532538,1759236641018,-150.0,0.0001877,2]
[388532539,1759236641028,-737.63700108,0.0001877,2]
[388532540,1759236641037,-693.0,0.0001878,2]
[388532541,1759236641047,-10216.44,0.00018799,7]
[388532542,1759236641056,-3045.32,0.00018799,7]
[388532543,1759236641065,-376.4527,0.000188,2]
[388532544,1759236641074,-1000.0,0.000188,2]
[388532545,1759236641084,-1000.0,0.000188,2]
[388532546,1759236641093,-1000.0,0.000188,2]
[388532547,1759236641102,-150.96,0.000188,2]
[388532548,1759236641112,-150.96,0.000188,2]
[388532549,1759236641122,-150.96,0.000188,2]
[388532550,1759236641132,-150.96,0.000188,2]
[388532551,1759236641141,-150.96,0.000188,2]
[388532552,1759236641150,-150.96,0.000188,2]
[388532553,1759236641159,-150.96,0.000188,2]
[388532554,1759236641169,-150.96,0.000188,2]
[388532555,1759236641178,-150.96,0.000188,2]
[388532556,1759236641189,-150.96,0.000188,2]
[388532557,1759236641201,-150.96,0.000188,2]
[388532558,1759236641211,-150.96,0.000188,2]
[388532559,1759236641221,-150.96,0.000188,2]
[388532560,1759236641231,-150.96,0.000188,2]
[388532561,1759236641241,-150.96,0.000188,2]
[388532562,1759236641251,-150.96,0.000188,2]
[388532563,1759236641263,-150.96,0.000188,2]
[388532564,1759236641272,-150.96,0.000188,2]
[388532565,1759236641283,-150.96,0.000188,2]
[388532566,1759236641292,-150.96,0.000188,2]
[388532567,1759236641301,-150.96,0.000188,2]
[388532568,1759236641310,-150.96,0.000188,2]
[388532569,1759236641319,-747.96159393,0.00018807,2]
[388532570,1759236641328,-283.84,0.00018821,2]
[388532571,1759236641336,-157.66782293,0.00018835,2]
[388532572,1759236641345,-5444.0,0.00018866,2]
[388532573,1759236641354,-168.0,0.00018878,2]
[388532574,1759236641363,-1649.87,0.00018886,2]
[388532575,1759236641373,-193.3,0.00018891,2]
[388532576,1759236641382,-247.79,0.000189,2]
[388532577,1759236641391,-247.79,0.000189,2]
[388532578,1759236641401,-646.25,0.000189,7]
[388532579,1759236641415,-28042.78,0.000189,2]
[388532580,1759236641425,-28042.78,0.000189,2]
[388532581,1759236641434,-164.84958483,0.000189,2]
[388532582,1759236641443,-1862.4,0.000189,7]
[388532583,1759236641454,-153.0,0.00018904,2]
[388532584,1759236641465,-153.0,0.00018904,2]
[388532585,1759236641474,-153.0,0.00018904,2]
[388532586,1759236641484,-153.0,0.00018904,2]
[388532587,1759236641492,-153.0,0.00018904,2]
[388532588,1759236641502,-153.0,0.00018904,2]
[388532589,1759236641511,-153.0,0.00018904,2]
[388532590,1759236641520,-153.0,0.00018904,2]
[388532591,1759236641529,-153.0,0.00018904,2]
[388532592,1759236641539,-153.0,0.00018904,2]
[388532593,1759236641548,-153.0,0.00018904,2]
[388532594,1759236641557,-153.0,0.00018904,2]
[388532595,1759236641566,-153.0,0.00018904,2]
[388532596,1759236641575,-153.0,0.00018904,2]
[388532597,1759236641584,-153.0,0.00018904,2]
[388532598,1759236641594,-153.0,0.00018904,2]
[388532599,1759236641603,-153.0,0.00018904,2]
[388532600,1759236641613,-153.0,0.00018904,2]
[388532601,1759236641622,-153.0,0.00018904,2]
[388532602,1759236641631,-153.0,0.00018904,2]
[388532603,1759236641641,-153.0,0.00018904,2]
[388532604,1759236641651,-153.0,0.00018904,2]
[388532605,1759236641660,-153.0,0.00018904,2]
[388532606,1759236641670,-153.0,0.00018904,2]
[388532607,1759236641679,-153.0,0.00018904,2]
[388532608,1759236641688,-153.0,0.00018904,2]
[388532609,1759236641699,-153.0,0.00018904,2]
[388532610,1759236641709,-153.0,0.00018904,2]
[388532611,1759236641722,-153.0,0.00018904,2]
[388532612,1759236641731,-153.0,0.00018904,2]
[388532613,1759236641740,-153.0,0.00018904,2]
[388532614,1759236641749,-153.0,0.00018904,2]
[388532615,1759236641759,-153.0,0.00018904,2]
[388532616,1759236641770,-153.0,0.00018904,2]
[388532617,1759236641781,-153.0,0.00018904,2]
[388532618,1759236641790,-153.0,0.00018904,2]
[388532619,1759236641799,-153.0,0.00018904,2]
[388532620,1759236641812,-153.0,0.00018904,2]
[388532621,1759236641822,-153.0,0.00018904,2]
[388532622,1759236641831,-153.0,0.00018904,2]
[388532623,1759236641840,-153.0,0.00018904,2]
[388532624,1759236641849,-153.0,0.00018904,2]
[388532625,1759236641858,-153.0,0.00018904,2]
[388532626,1759236641867,-153.0,0.00018904,2]
[388532627,1759236641877,-153.0,0.00018904,2]
[388532628,1759236641886,-153.0,0.00018904,2]
[388532629,1759236641895,-153.0,0.00018904,2]
[388532630,1759236641904,-153.0,0.00018904,2]
[388532631,1759236641914,-153.0,0.00018904,2]
[388532632,1759236641923,-153.0,0.00018904,2]
[388532633,1759236641932,-153.0,0.00018904,2]
[388532634,1759236641941,-153.0,0.00018904,2]
[388532635,1759236641951,-153.0,0.00018904,2]
[388532636,1759236641960,-153.0,0.00018904,2]
[388532637,1759236641969,-153.0,0.00018904,2]
[388532638,1759236641978,-153.0,0.00018904,2]
[388532639,1759236641987,-153.0,0.00018904,2]
[388532640,1759236641997,-153.0,0.00018904,2]
[388532641,1759236642006,-153.0,0.00018904,2]
[388532642,1759236642015,-693.0,0.00018955,2]
[388532643,1759236642025,-168.0,0.00018962,2]
[388532644,1759236642034,-151.0,0.00018983,2]
[388532645,1759236642045,-9000.0,0.00018983,2]
[388532646,1759236642055,-247.79,0.00019,2]
[388532647,1759236642064,-247.79,0.00019,2]
[388532648,1759236642074,-28042.78,0.00019,2]
[388532649,1759236642083,-28042.78,0.00019,2]
[388532650,1759236642093,-524.87023686,0.00019,2]
[388532651,1759236642102,-524.87023686,0.00019,2]
[388532652,1759236642111,-1114.32339441,0.00019,3]
[388532653,1759236642120,-592.703388,0.00019,2]